bitfinex/quotes_SOLUSD_20250321
["timestamp","ask_amount","ask_price","bid_price","bid_amount"]
[1742537368351,0.03,128.16,128.15,14.6233]
[1742537369860,0.03,128.16,128.15,29.22252472]
[1742537375178,0.03,128.16,128.15,29.50684786]
[1742537380673,0.03,128.16,128.15,14.90762314]
[1742537380876,0.03,128.16,128.15,29.22252472]
[1742537381177,0.03,128.16,128.15,6.82]
[1742537382383,0.03,128.16,128.14,29.18282472]
[1742537382764,0.03,128.16,128.15,14.59922472]
[1742537382960,0.03,128.16,128.14,29.18282472]
[1742537383355,0.03,128.16,128.14,21.37922472]
[1742537383558,0.03,128.16,128.14,29.18302472]
[1742537383761,0.03,128.16,128.14,21.35922472]
[1742537384456,0.03,128.16,128.14,29.16302472]
[1742537387879,0.03,128.16,128.14,22.40302472]
[1742537388074,0.03,128.16,128.13,21.35922472]
[1742537389791,0.03,128.16,128.13,14.59922472]
[1742537390090,14.62922472,128.16,128.12,6.823]
[1742537390266,14.62922472,128.16,128.12,0.063]
[1742537391380,7.8033,128.15,128.12,0.063]
[1742537393986,22.43222472,128.16,128.12,0.063]
[1742537394385,7.833,128.16,128.12,14.66222472]
[1742537394565,7.833,128.16,128.12,0.063]
[1742537394566,22.43222472,128.16,128.12,0.063]
[1742537397796,0.03,128.16,128.12,0.063]
[1742537398590,14.62922472,128.16,128.12,0.063]
[1742537399496,22.43252472,128.16,128.12,0.063]
[1742537401894,0.03,128.16,128.12,0.063]
[1742537402096,0.03,128.16,128.13,14.59922472]
[1742537403299,0.03,128.16,128.14,7.8039]
[1742537403787,0.03,128.16,128.14,22.40312472]
[1742537404710,0.03,128.16,128.14,7.8039]
[1742537404917,0.03,128.16,128.13,22.40342472]
[1742537407914,0.03,128.16,128.14,14.59922472]
[1742537409625,0.03,128.16,128.14,22.40302472]
[1742537410631,0.03,128.16,128.15,21.33922472]
[1742537411740,0.03,128.16,128.15,14.5433]
[1742537412424,0.03,128.16,128.15,6.74]
[1742537413313,0.03,128.16,128.15,14.5433]
[1742537414661,0.03,128.16,128.15,29.14252472]
[1742537416750,0.03,128.16,128.15,49.711171]
[1742537416939,0.03,128.16,128.15,68.36081986]
[1742537417236,0.03,128.17,128.16,92.21441874]
[1742537417419,0.03,128.17,128.16,33.81751986]
[1742537417829,1.5191,128.23,128.16,53.89776409]
[1742537418048,1.5191,128.23,128.2,14.59922472]
[1742537418217,1.5191,128.23,128.2,21.39922472]
[1742537418431,1.5191,128.23,128.2,6.8]
[1742537418634,14.59922472,128.22,128.2,6.8]
[1742537420550,23.94702472,128.23,128.2,6.8]
[1742537421652,43.94702472,128.23,128.2,6.8]
[1742537424239,21.5491,128.23,128.2,6.8]
[1742537424461,20.03,128.23,128.21,14.59922472]
[1742537425138,0.03,128.23,128.21,14.59922472]
[1742537426258,0.03,128.23,128.2,21.39922472]
[1742537427552,0.03,128.23,128.2,29.19932472]
[1742537428761,14.62922472,128.23,128.2,6.8]
[1742537429455,14.62922472,128.23,128.2,21.39922472]
[1742537429456,0.03,128.23,128.2,21.39922472]
[1742537429669,0.03,128.23,128.2,6.8]
[1742537432659,0.03,128.23,128.2,14.6002]
[1742537432962,0.03,128.23,128.2,29.19942472]
[1742537433969,0.03,128.23,128.2,49.19942472]
[1742537435667,0.03,128.23,128.22,7.799]
[1742537436161,0.03,128.23,128.21,7.7995]
[1742537440669,14.62922472,128.23,128.2,6.8]
[1742537441073,0.03,128.23,128.2,6.8]
[1742537441976,7.8284,128.23,128.2,6.8]
[1742537442364,22.42762472,128.23,128.2,6.8]
[1742537442670,7.8284,128.23,128.2,6.8]
[1742537442859,22.42762472,128.23,128.2,6.8]
[1742537444463,7.8284,128.23,128.2,6.8]
[1742537444881,0.03,128.23,128.2,14.6003]
[1742537445588,0.03,128.23,128.2,29.19952472]
[1742537447372,0.03,128.23,128.21,14.59922472]
[1742537448186,0.03,128.23,128.21,22.39842472]
[1742537448563,0.03,128.23,128.21,7.7992]
[1742537448769,0.03,128.23,128.2,49.19922472]
[1742537449279,0.03,128.23,128.2,34.6]
[1742537450071,0.03,128.23,128.2,49.19922472]
[1742537451792,0.03,128.23,128.2,34.6]
[1742537452908,0.03,128.23,128.22,14.59922472]
[1742537453387,0.03,128.23,128.21,14.88354786]
[1742537453980,0.03,128.23,128.22,7.799]
[1742537457795,0.03,128.23,128.22,42.68254786]
[1742537458203,14.62922472,128.23,128.2,26.8]
[1742537459727,22.42762472,128.23,128.2,6.8]
[1742537459912,14.59922472,128.22,128.19,6.74]
[1742537460204,22.42762472,128.23,128.19,6.74]
[1742537462006,22.42762472,128.23,128.19,14.5408]
[1742537462196,22.42762472,128.23,128.19,6.74]
[1742537463516,14.62922472,128.23,128.19,29.14002472]
[1742537463695,0.03,128.23,128.19,29.14002472]
[1742537463886,22.42772472,128.23,128.19,14.5408]
[1742537464287,7.8285,128.23,128.19,29.14002472]
[1742537464914,14.62922472,128.23,128.19,14.5408]
[1742537465315,14.62922472,128.23,128.19,6.74]
[1742537466718,14.59922472,128.2,128.16,0.063]
[1742537466923,14.59922472,128.19,128.17,6.74]
[1742537468012,22.40042472,128.19,128.17,6.74]
[1742537468707,20.71062472,128.21,128.17,6.74]
[1742537468910,20.71062472,128.21,128.17,14.5419]
[1742537468911,14.59922472,128.21,128.17,14.5419]
[1742537469216,160.15232472,128.23,128.18,14.59922472]
[1742537469405,160.15232472,128.23,128.17,29.14112472]
[1742537469406,14.59922472,128.22,128.17,29.14112472]
[1742537470121,22.39852472,128.22,128.17,29.14112472]
[1742537470722,14.59922472,128.22,128.17,29.14112472]
[1742537470893,14.59922472,128.22,128.17,14.5419]
[1742537471102,24.05232472,128.23,128.18,14.59922472]
[1742537471831,16.25372472,128.23,128.18,34.59922472]
[1742537472011,0.03,128.23,128.19,14.59922472]
[1742537472525,0.03,128.23,128.19,22.39992472]
[1742537475010,0.03,128.23,128.21,7.7997]
[1742537475210,0.03,128.23,128.21,14.5197]
[1742537477405,0.03,128.23,128.21,29.11892472]
[1742537477828,0.03,128.23,128.22,14.59922472]
[1742537478721,0.03,128.23,128.21,6.72]
[1742537481741,0.03,128.23,128.19,14.59922472]
[1742537482038,0.03,128.23,128.21,6.72]
[1742537482263,34.59922472,128.22,128.21,6.72]
[1742537482539,34.59922472,128.22,128.18,6.72]
[1742537482716,14.59922472,128.21,128.18,6.72]
[1742537483415,14.59922472,128.2,128.16,0.063]
[1742537483615,14.59922472,128.19,128.16,0.063]
[1742537483824,14.59922472,128.19,128.16,6.783]
[1742537484341,7.8015,128.18,128.16,6.783]
[1742537487269,22.40032472,128.19,128.16,6.783]
[1742537488034,14.59922472,128.18,128.16,6.783]
[1742537488240,14.59922472,128.17,128.16,0.063]
[1742537489265,22.40132472,128.17,128.16,0.063]
[1742537491160,7.8021,128.17,128.16,0.063]
[1742537491468,22.40132472,128.17,128.16,0.063]
[1742537496375,14.59922472,128.17,128.16,0.063]
[1742537496569,158.50092472,128.18,128.16,0.063]
[1742537496872,20.0,128.17,128.16,0.063]
[1742537497455,7.8012,128.19,128.16,0.063]
[1742537497962,155.5996,128.21,128.16,0.063]
[1742537497963,22.39982472,128.2,128.16,0.063]
[1742537498664,14.59922472,128.19,128.16,0.063]
[1742537500078,22.39982472,128.2,128.16,0.063]
[1742537500659,0.03,128.19,128.16,0.063]
[1742537506677,14.62922472,128.19,128.16,0.063]
[1742537507185,22.43032472,128.19,128.16,0.063]
[1742537510559,14.62922472,128.19,128.16,0.063]
[1742537510759,22.43022472,128.19,128.16,0.063]
[1742537511678,7.831,128.19,128.16,0.063]
[1742537512481,22.43022472,128.19,128.16,0.063]
[1742537516801,20.0,128.18,128.16,0.063]
[1742537518995,0.03,128.19,128.16,22.46492472]
[1742537519389,0.03,128.19,128.17,6.7]
[1742537520094,0.03,128.19,128.17,21.29922472]
[1742537520502,0.03,128.19,128.17,6.7]
[1742537520704,0.03,128.19,128.17,21.29922472]
[1742537521204,0.03,128.19,128.18,7.8015]
[1742537522285,0.03,128.19,128.17,14.5018]
[1742537523012,0.03,128.19,128.17,6.7]
[1742537524301,14.62922472,128.19,128.17,6.7]
[1742537524523,14.59922472,128.18,128.17,6.7]
[1742537524708,34.59922472,128.18,128.17,6.7]
[1742537524910,20.0,128.18,128.17,6.7]
[1742537526237,0.03,128.19,128.17,6.7]
[1742537526609,0.03,128.19,128.17,14.5019]
[1742537526810,170.69922472,128.18,128.16,0.063]
[1742537527116,22.40132472,128.17,128.16,0.063]
[1742537536620,41.05097358,128.17,128.16,0.063]
[1742537537531,41.33529672,128.17,128.16,0.063]
[1742537537910,106.3617956,128.17,128.16,0.063]
[1742537538827,47.96489672,128.17,128.16,0.063]
[1742537546337,41.33529672,128.17,128.16,0.063]
[1742537546644,26.45174886,128.17,128.16,0.063]
[1742537547115,41.05097358,128.17,128.16,0.063]
[1742537549854,41.36529672,128.17,128.16,0.063]
[1742537551844,7.8321,128.17,128.16,0.063]
[1742537552140,0.03,128.17,128.16,14.66222472]
[1742537552517,0.03,128.17,128.16,34.94654786]
[1742537554267,0.03,128.17,128.16,42.74924786]
[1742537555358,0.03,128.17,128.16,43.033571]
[1742537555760,0.03,128.17,128.16,50.693071]
[1742537555952,0.03,128.19,128.18,20.28432314]
[1742537556143,0.03,128.19,128.18,34.88354786]
[1742537557667,0.03,128.19,128.18,42.68504786]
[1742537559070,0.03,128.19,128.18,61.61901986]
[1742537559746,0.03,128.23,128.2,20.0]
[1742537560063,0.03,128.23,128.22,14.59922472]
[1742537562870,0.03,128.23,128.22,22.39822472]
[1742537563266,0.03,128.23,128.22,14.59922472]
[1742537563565,0.03,128.23,128.22,22.39822472]
[1742537564365,0.03,128.23,128.22,42.68254786]
[1742537569650,0.03,128.23,128.22,61.61651986]
[1742537570356,0.03,128.23,128.22,63.23241986]
[1742537570561,0.03,128.29,128.25,20.0]
[1742537570883,0.03,128.29,128.27,14.59922472]
[1742537571252,0.03,128.29,128.28,14.59922472]
[1742537574070,0.03,128.29,128.28,22.39462472]
[1742537574452,0.03,128.29,128.27,14.59922472]
[1742537576991,0.03,128.29,128.28,14.59922472]
[1742537578187,0.03,128.29,128.27,14.59922472]
[1742537578864,0.03,128.29,128.28,14.59922472]
[1742537580286,0.03,128.29,128.28,42.67894786]
[1742537582272,0.03,128.29,128.28,42.963271]
[1742537584266,0.03,128.29,128.28,42.67894786]
[1742537586596,0.03,128.29,128.28,42.963271]
[1742537590676,0.03,128.29,128.28,61.61291986]
[1742537592899,0.03,128.3,128.29,0.28432314]
[1742537593101,0.03,128.3,128.29,33.81751986]
[1742537594934,0.03,128.3,128.29,41.61231986]
[1742537596518,0.03,128.3,128.29,22.67834786]
[1742537596718,0.03,128.3,128.27,14.59922472]
[1742537596923,0.03,128.3,128.28,6.66]
[1742537600740,0.03,128.3,128.29,14.59922472]
[1742537602412,0.03,128.3,128.29,22.39402472]
[1742537603413,0.03,128.3,128.28,34.4552]
[1742537603613,0.03,128.3,128.29,14.59922472]
[1742537604640,0.03,128.3,128.29,21.25922472]
[1742537604846,0.03,128.3,128.29,6.66]
[1742537607643,0.03,128.3,128.29,29.05402472]
[1742537608320,0.03,128.3,128.29,6.66]
[1742537608837,0.03,128.3,128.29,14.4548]
[1742537609030,0.03,128.3,128.29,29.05402472]
[1742537610248,0.03,128.3,128.29,14.4548]
[1742537610448,0.03,128.3,128.29,29.05402472]
[1742537612627,0.03,128.3,128.29,14.4548]
[1742537614251,0.03,128.3,128.29,29.05402472]
[1742537614650,0.03,128.3,128.29,29.33834786]
[1742537619853,0.03,128.3,128.29,14.73912314]
[1742537620028,0.03,128.3,128.29,29.05402472]
[1742537631270,0.03,128.3,128.29,29.33834786]
[1742537634371,0.03,128.3,128.29,29.05402472]
[1742537634555,0.03,128.3,128.29,21.25922472]
[1742537634968,0.03,128.3,128.29,6.66]
[1742537635258,0.03,128.3,128.29,21.25922472]
[1742537636075,0.03,128.3,128.29,29.05402472]
[1742537638365,0.03,128.3,128.29,29.33834786]
[1742537640883,0.03,128.3,128.29,29.05402472]
[1742537641192,0.03,128.3,128.28,0.063]
[1742537641370,14.62922472,128.3,128.28,0.063]
[1742537641569,7.7948,128.29,128.28,0.063]
[1742537645997,41.04367358,128.29,128.28,0.063]
[1742537647524,47.36639672,128.29,128.28,0.063]
[1742537647669,48.93039672,128.29,128.28,0.063]
[1742537649303,185.03039672,128.29,128.28,0.063]
[1742537661116,48.93039672,128.29,128.28,0.063]
[1742537663213,34.04684886,128.29,128.28,0.063]
[1742537663517,48.64607358,128.29,128.28,0.063]
[1742537663814,41.04367358,128.29,128.28,0.063]
[1742537664404,22.39402472,128.29,128.28,0.063]
[1742537668422,22.42402472,128.29,128.28,0.063]
[1742537674834,0.03,128.29,128.28,0.063]
[1742537675521,20.03,128.29,128.28,0.063]
[1742537676821,0.03,128.29,128.28,14.66222472]
[1742537678313,0.03,128.29,128.28,0.063]
[1742537678627,0.03,128.29,128.28,14.66222472]
[1742537678805,0.03,128.29,128.28,22.45762472]
[1742537679835,0.03,128.29,128.28,0.063]
[1742537680436,14.62922472,128.29,128.28,0.063]
[1742537680607,0.03,128.29,128.28,0.063]
[1742537681832,7.8248,128.29,128.28,0.063]
[1742537684911,0.03,128.29,128.28,0.063]
[1742537695459,20.03,128.29,128.28,0.063]
[1742537695656,0.03,128.29,128.28,0.063]
[1742537697248,14.62922472,128.29,128.28,0.063]
[1742537697657,42.42402472,128.29,128.28,0.063]
[1742537703067,27.8248,128.29,128.28,0.063]
[1742537703248,20.03,128.29,128.28,0.063]
[1742537703448,27.8248,128.29,128.28,0.063]
[1742537706872,42.42402472,128.29,128.28,0.063]
[1742537711173,27.8248,128.29,128.28,0.063]
[1742537712359,42.42402472,128.29,128.28,0.063]
[1742537713770,27.8248,128.29,128.28,0.063]
[1742537714369,20.03,128.29,128.28,0.063]
[1742537715972,27.8248,128.29,128.28,0.063]
[1742537716149,42.42402472,128.29,128.28,0.063]
[1742537717776,216.66067358,128.29,128.23,1.5561]
[1742537717985,14.59922472,128.26,128.22,6.723]
[1742537718480,9.63995372,128.26,128.22,6.723]
[1742537718980,14.59922472,128.27,128.22,14.66222472]
[1742537719190,14.59922472,128.27,128.22,21.32222472]
[1742537719990,7.7966,128.26,128.22,21.32222472]
[1742537721389,7.7966,128.26,128.22,29.12122472]
[1742537721579,22.39552472,128.27,128.22,29.12122472]
[1742537722188,14.59922472,128.28,128.23,14.59922472]
[1742537722569,14.59922472,128.28,128.24,14.59922472]
[1742537723187,14.59922472,128.28,128.24,21.25922472]
[1742537724193,14.59922472,128.28,128.24,29.05672472]
[1742537724493,61.07407358,128.29,128.24,29.05672472]
[1742537725394,61.07407358,128.29,128.24,29.11972472]
[1742537727692,34.62922472,128.29,128.24,29.11972472]
[1742537727891,20.03,128.29,128.25,14.59922472]
[1742537728196,20.03,128.29,128.26,14.59922472]
[1742537728590,20.03,128.29,128.25,14.59922472]
[1742537729895,20.03,128.29,128.26,7.7966]
[1742537730900,20.03,128.29,128.26,22.39582472]
[1742537731682,20.03,128.29,128.26,7.7966]
[1742537731889,20.03,128.29,128.26,14.59922472]
[1742537734876,20.03,128.29,128.27,7.796]
[1742537735277,20.03,128.29,128.26,7.7963]
[1742537735777,20.03,128.29,128.26,22.39552472]
[1742537738004,0.03,128.29,128.28,14.59922472]
[1742537738302,0.03,128.29,128.28,21.25922472]
[1742537739202,0.03,128.29,128.28,29.05462472]
[1742537747416,0.03,128.29,128.28,49.33894786]
[1742537747710,0.03,128.29,128.28,50.92134786]
[1742537748701,0.03,128.29,128.28,51.205671]
[1742537751424,15.13109482,128.33,128.29,0.28432314]
[1742537751595,15.13109482,128.33,128.31,14.59922472]
[1742537751796,15.13109482,128.33,128.32,6.66]
[1742537752709,22.39162472,128.33,128.32,6.66]
[1742537753021,22.42122472,128.34,128.32,6.66]
[1742537753521,0.03,128.34,128.32,6.66]
[1742537754423,0.03,128.34,128.32,21.25922472]
[1742537755824,0.03,128.34,128.33,14.59922472]
[1742537757425,0.03,128.34,128.32,6.66]
[1742537757724,14.59922472,128.33,128.31,6.66]
[1742537758104,0.03,128.34,128.31,6.66]
[1742537758105,14.62922472,128.34,128.31,6.66]
[1742537760244,7.7924,128.33,128.31,6.66]
[1742537762252,7.8218,128.34,128.31,6.66]
[1742537762635,7.8218,128.34,128.31,29.05272472]
[1742537762636,0.03,128.34,128.31,29.05272472]
[1742537762852,0.03,128.34,128.32,14.59922472]
[1742537763150,0.03,128.34,128.33,14.59922472]
[1742537764645,0.03,128.34,128.33,22.39162472]
[1742537765261,0.03,128.34,128.31,6.94432314]
[1742537765439,0.03,128.34,128.31,6.66]
[1742537765765,0.03,128.34,128.31,21.25922472]
[1742537769251,14.59922472,128.33,128.29,14.59922472]
[1742537769460,14.59922472,128.32,128.3,6.66]
[1742537770055,14.59922472,128.32,128.29,6.66]
[1742537770267,14.59922472,128.33,128.29,21.25922472]
[1742537770431,14.62922472,128.34,128.29,21.25922472]
[1742537771066,22.42142472,128.34,128.29,29.05372472]
[1742537771395,20.03,128.34,128.31,14.59922472]
[1742537771541,20.03,128.34,128.32,14.59922472]
[1742537771740,0.03,128.34,128.33,6.66]
[1742537772965,0.03,128.34,128.32,14.59922472]
[1742537773162,0.03,128.34,128.33,6.66]
[1742537776067,0.03,128.34,128.33,14.4524]
[1742537777057,0.03,128.34,128.33,29.05162472]
[1742537779474,0.03,128.34,128.33,21.25922472]
[1742537779656,0.03,128.34,128.33,6.66]
[1742537780151,0.03,128.34,128.33,21.25922472]
[1742537780678,0.03,128.34,128.33,29.05162472]
[1742537780986,0.03,128.34,128.33,14.4524]
[1742537781278,0.03,128.34,128.33,6.66]
[1742537783484,14.62922472,128.34,128.31,0.063]
[1742537783860,14.62922472,128.34,128.31,6.723]
[1742537784668,0.03,128.34,128.31,21.32222472]
[1742537785281,0.03,128.34,128.33,0.063]
[1742537800387,14.62922472,128.34,128.33,0.063]
[1742537800896,35.11369672,128.34,128.33,0.063]
[1742537802597,42.90549672,128.34,128.33,0.063]
[1742537804682,179.00549672,128.34,128.33,0.063]
[1742537806988,178.72117358,128.34,128.33,0.063]
[1742537807293,158.52102472,128.34,128.33,0.063]
[1742537809196,177.17067358,128.34,128.33,0.063]
[1742537809591,177.45499672,128.34,128.33,0.063]
[1742537810797,41.35499672,128.34,128.33,0.063]
[1742537816501,177.45499672,128.34,128.33,0.063]
[1742537819401,41.63931986,128.34,128.33,0.063]
[1742537819787,48.29931986,128.34,128.33,0.063]
[1742537820188,2.15974628,128.32,128.31,0.063]
[1742537820388,93.80551874,128.32,128.31,0.063]
[1742537820694,101.59851874,128.32,128.31,0.063]
[1742537820894,14.59922472,128.26,128.25,0.063]
[1742537822107,33.24887358,128.26,128.25,0.063]
[1742537822408,35.40861986,128.26,128.25,0.063]
[1742537822906,43.20521986,128.26,128.25,0.063]
[1742537823112,41.04547358,128.26,128.25,0.063]
[1742537823300,33.24887358,128.26,128.25,0.063]
[1742537824513,41.04547358,128.26,128.25,0.063]
[1742537826312,41.32979672,128.26,128.25,0.063]
[1742537826508,41.61411986,128.26,128.25,0.063]
[1742537831712,18.933972,128.25,128.24,0.063]
[1742537831913,18.933972,128.25,128.22,0.063]
[1742537831914,20.0,128.23,128.22,0.063]
[1742537832119,53.81751986,128.23,128.22,0.063]
[1742537833716,61.61591986,128.23,128.22,0.063]
[1742537834306,53.24887358,128.23,128.22,0.063]
[1742537834612,61.04727358,128.23,128.22,0.063]
[1742537835615,61.33159672,128.23,128.22,0.063]
[1742537835797,61.61591986,128.23,128.22,0.063]
[1742537836604,61.61591986,128.23,128.2,0.063]
[1742537836605,0.28432314,128.21,128.2,0.063]
[1742537836800,14.88354786,128.21,128.2,0.063]
[1742537837808,22.68324786,128.21,128.2,0.063]
[1742537839019,22.68324786,128.21,128.18,0.063]
[1742537839020,38.933972,128.19,128.18,0.063]
[1742537839215,53.53319672,128.19,128.18,0.063]
[1742537839716,14.59922472,128.2,128.18,0.063]
[1742537840330,14.59922472,128.19,128.18,0.063]
[1742537841015,26.44954886,128.21,128.18,0.063]
[1742537841016,14.59922472,128.2,128.18,0.063]
[1742537841403,22.39952472,128.2,128.18,0.063]
[1742537841911,14.59922472,128.19,128.18,0.063]
[1742537843528,22.40012472,128.19,128.18,0.063]
[1742537845217,42.40012472,128.19,128.18,0.063]
[1742537846628,61.04977358,128.19,128.18,0.063]
[1742537852229,61.33409672,128.19,128.18,0.063]
[1742537852533,61.04977358,128.19,128.18,0.063]
[1742537858339,38.64964886,128.17,128.16,0.063]
[1742537858516,53.53319672,128.17,128.16,0.063]
[1742537858936,136.1,128.18,128.16,0.063]
[1742537860530,150.69922472,128.18,128.16,0.063]
[1742537860733,136.1,128.18,128.16,0.063]
[1742537861634,143.9015,128.18,128.16,0.063]
[1742537861939,158.50072472,128.18,128.16,0.063]
[1742537863435,22.40072472,128.18,128.16,0.063]
[1742537863916,7.8015,128.18,128.16,0.063]
[1742537865818,22.40072472,128.18,128.16,0.063]
[1742537870547,14.59922472,128.17,128.16,0.063]
[1742537871140,7.8015,128.18,128.16,0.063]
[1742537871326,22.40072472,128.18,128.16,0.063]
[1742537871525,7.8015,128.18,128.16,0.063]
[1742537871734,22.40072472,128.18,128.16,0.063]
[1742537875636,14.59922472,128.17,128.16,0.063]
[1742537876469,22.40132472,128.17,128.16,0.063]
[1742537877357,99.7321956,128.17,128.16,0.063]
[1742537877516,99.7321956,128.17,128.11,7.8366]
[1742537877517,34.59922472,128.14,128.11,0.063]
[1742537877847,18.64964886,128.12,128.11,0.063]
[1742537878031,7.89276993,128.16,128.11,0.063]
[1742537878228,33.24887358,128.12,128.11,0.063]
[1742537878539,14.59922472,128.14,128.11,0.063]
[1742537878926,18.64964886,128.16,128.11,0.063]
[1742537879130,14.59922472,128.16,128.11,14.66222472]
[1742537879331,14.59922472,128.17,128.12,14.59922472]
[1742537879645,14.59922472,128.17,128.16,0.063]
[1742537880122,33.53319672,128.17,128.16,0.063]
[1742537880529,41.33529672,128.17,128.16,0.063]
[1742537881525,100.01651874,128.17,128.16,0.063]
[1742537881726,41.61961986,128.17,128.16,0.063]
[1742537882051,33.53319672,128.17,128.16,0.063]
[1742537882253,0.03,128.18,128.16,0.063]
[1742537882847,14.62922472,128.18,128.16,0.063]
[1742537883033,0.03,128.18,128.16,0.063]
[1742537884530,14.62922472,128.18,128.16,0.063]
[1742537885149,0.03,128.18,128.16,0.063]
[1742537886226,0.03,128.18,128.16,14.66222472]
[1742537886435,0.03,128.18,128.16,22.46462472]
[1742537886835,0.03,128.18,128.16,0.063]
[1742537887340,0.03,128.18,128.16,7.8654]
[1742537888150,0.03,128.18,128.16,14.66222472]
[1742537889047,0.03,128.18,128.17,14.59922472]
[1742537890560,0.03,128.18,128.16,0.063]
[1742537891626,0.03,128.18,128.17,14.59922472]
[1742537892444,0.03,128.18,128.17,22.40132472]
[1742537892654,0.03,128.18,128.17,44.25284786]
[1742537893666,0.03,128.18,128.17,44.537171]
[1742537896468,0.03,128.18,128.17,63.18681986]
[1742537896638,0.03,128.2,128.19,53.81751986]
[1742537896836,0.03,128.2,128.19,60.75751986]
[1742537897167,0.03,128.23,128.21,20.0]
[1742537897468,0.03,128.23,128.2,1.5265]
[1742537897644,0.03,128.23,128.22,14.59922472]
[1742537898663,0.03,128.23,128.22,22.39822472]
[1742537898959,0.03,128.23,128.21,22.39862472]
[1742537900765,0.03,128.23,128.22,14.59922472]
[1742537902973,0.03,128.23,128.22,22.39822472]
[1742537909469,0.03,128.23,128.22,22.68254786]
[1742537910866,0.03,128.23,128.22,22.966871]
[1742537914489,0.03,128.23,128.22,7.799]
[1742537915589,0.03,128.23,128.22,14.779]
[1742537916959,0.03,128.23,128.22,29.37822472]
[1742537917987,0.03,128.23,128.22,22.39822472]
[1742537918292,0.03,128.23,128.22,29.35822472]
[1742537919389,0.03,128.23,128.22,29.926871]
[1742537920062,0.03,128.23,128.22,7.24432314]
[1742537920262,0.03,128.23,128.22,29.64254786]
[1742537920692,0.03,128.23,128.22,48.57651986]
[1742537922091,0.03,128.31,128.27,20.0]
[1742537922271,0.03,128.31,128.28,6.98]
[1742537922272,14.62922472,128.31,128.28,6.98]
[1742537923377,0.03,128.31,128.28,6.98]
[1742537923975,14.62922472,128.31,128.28,6.98]
[1742537924690,22.42282472,128.31,128.28,6.98]
[1742537924891,34.59922472,128.29,128.28,6.98]
[1742537925094,34.59922472,128.29,128.25,41.57922472]
[1742537925293,34.59922472,128.29,128.25,26.98]
[1742537925972,20.0,128.29,128.25,41.57922472]
[1742537927199,34.59922472,128.29,128.25,41.57922472]
[1742537928097,42.39402472,128.29,128.25,41.57922472]
[1742537928401,42.42402472,128.29,128.25,41.57922472]
[1742537928594,34.62922472,128.29,128.25,41.57922472]
[1742537928917,42.42402472,128.29,128.25,41.57922472]
[1742537929499,42.42402472,128.29,128.25,26.98]
[1742537930187,34.62922472,128.29,128.25,49.37642472]
[1742537930375,20.03,128.29,128.25,49.37642472]
[1742537933502,20.03,128.29,128.25,34.7772]
[1742537933805,20.03,128.29,128.26,14.59922472]
[1742537934184,20.03,128.29,128.26,22.39532472]
[1742537934697,0.03,128.29,128.27,14.59922472]
[1742537934998,0.03,128.29,128.28,14.59922472]
[1742537936308,0.03,128.29,128.28,22.39462472]
[1742537937697,0.03,128.29,128.28,22.67894786]
[1742537938580,0.03,128.29,128.28,22.963271]
[1742537943401,0.03,128.29,128.28,122.78291986]
[1742537943605,0.03,128.29,128.28,124.34139631]
[1742537944111,0.03,128.31,128.3,58.933972]
[1742537944313,0.03,128.31,128.3,161.62319672]
[1742537945712,0.03,128.31,128.3,169.41739672]